{"text_format":"1","workbook":"xlsx","n_sheets":1,"sheets":["conceptos"],"not_rendered":{"charts":0,"images":2,"macros":1,"external_links":0,"defined_names":1,"comments":0,"pivot_tables":0},"unopened":[],"bounds":{"document_bytes":16777216,"sheet_cells":100000,"rows_first":2000,"rows_last":500,"rows_between":2000,"halvings":0,"cell_chars":16384,"cell_head_chars":4096},"cells_cut":0,"cells_raw":0,"read":"whole","date_system":"1900"}

{"sheet":"conceptos","index":0,"n_rows":157,"n_cols":8,"rows_kept":157,"cut":false,"hidden":false,"merged":[[154,0,154,4],[155,0,156,4],[13,0,13,6],[0,2,0,5],[9,2,9,5],[1,2,3,5],[4,2,4,3],[6,2,6,3],[7,2,7,3],[4,4,4,5],[5,4,5,5],[6,4,6,5],[7,4,7,5],[10,2,10,5],[11,2,11,5],[5,1,8,1]]}
[null,"GOBIERNO DEL ESTADO DE JALISCO","LICITACIÓN PÚBLICA ESTATAL"]
[null,"INSTITUTO DE LA INFRAESTRUCTURA FÍSICA EDUCATIVA DEL","E-REM-B-CONA-02941-LP-0094-2020"]
[null,"ESTADO DE JALISCO"]
[]
[null,"DESCRIPCIÓN GENERAL DE LOS TRABAJOS:","FECHA DE INICIO:"]
[null,null,null,"FECHA DE TERMINACIÓN:"]
[null,null,"PLAZO DE EJECUCIÓN:"]
[null,null,"FECHA:"]
[]
[null,"RAZÓN SOCIAL DEL LICITANTE:","NOMBRE, CARGO Y FIRMA DEL LICITANTE:",null,null,null,"DOCUMENTO"]
[]
[]
[]
["PRESUPUESTO DE OBRA"]
[]
["CLAVE","DESCRIPCIÓN","UNIDAD","CANTIDAD","PRECIO UNITARIO ($)","PRECIO UNITARIO ($) CON LETRA","IMPORTE ($) M.N."]
["TRABAJO : BAS-CONA-02941","CONSTRUCCIÓN DE UN AULA DIDÁCTICA, UN AULA DE USOS MÚLTIPLES, UN NÚCLEO DE SERVICIOS SANITARIOS, DIRECCIÓN CON ANEXO Y BODEGA, EN EL JARDÍN DE NIÑOS JAIME TORRES BODET CCT 14DJN0732V, UBICADO EN LA LOCALIDAD EL SALITRE, MUNICIPIO DE SAN MARTÍN HIDALGO, JALISCO. PRIMERA ETAPA.",null,null,null,null,{"$f":"TEXT(SUM(G18 + G22), \"$ #,##0.00 ;\")","v":"$ 0.00 "}]
["A","EDIFICIO A",null,null,null,null,{"$f":"TEXT((G19), \"$ #,##0.00 ;\")","v":"$ 0.00 "}]
["A.01(140)","DEMOLICIONES, DESMONTAJES Y MECANICA DE SUELOS    ",null,null,null,null,{"$f":"TEXT(SUM(G20:G21), \"$ #,##0.00 ;\")","v":"$ 0.00 "}]
[140020,"DEMOLICION DE CONSTRUCCION EXISTENTE EN ENDIFICIOS DE UN NIVEL Y/O PLANTA BAJA, INCLUYE: MUROS, CADENAS, CASTILLOS, PISOS,  FIRMES, CIMENTACIONES HASTA 20 CM POR DEBAJO DEL NIVEL DEL TERRENO NATURAL, CUBIERTA A BASE DE BOVEDA DE CUÑA,  DESMANTELAMIENTO DE PERFILES METALICOS ESTRUCTURALES (CON RECUPERACION DE ESTRUCTURA),  RECUBRIMIENTOS, DESMANTELAMIENTO DE CANCELERIA  Y/O HERRERIA. (VENTANAS CON VIDRIOS MAMPARAS METALICAS Y PUERTAS, . DESCINSTALACION DE SALIDAS ELECTRICAS (LAMPARAS, APAGADORES, CONTACTOS, CENTROS DE CARGA TUBERIA CONDUIT. ETC.)  DESMONTAJE DE MUEBLES SANITARIOS E INSTALACION HIDROSANITARIA, ACARREO DE MATERIAL RECUPERABLE A LUGAR INDICADO POR SUPERVISION, HERRAMIENTAS, EQUIPO, MAQUINARIA, LIMPIEZA DEL AREA DE TRABAJO, MANO DE OBRA Y ACARREO DE ESCOMBRO DENTRO Y FUERA DE LA OBRA HASTA EL LUGAR PERMITIDO LAS AUTORIDADES CORRESPONDIENTES, TODAS LA DEMOLICIONES Y DESMONTAJES SE CONCIDERAN  MEDIDO POR M2 DE PROYECCION DE CUBIERTA DEL EDIFICIO.","M2 ","228.7400",0,"CERO PESOS 00/100 M.N.",0,275429]
[140621,"DEMOLICION DE CIMIENTO DE MAMPOSTERIA DE PIEDRA BRAZA ASENTADA CON MORTERO CEM-ARE. INCLUYE: HERRAMIENTA, EQUIPO NECESARIO, MATERIAL DE CONSUMO, MANO DE OBRA, RETIRO Y ACARREO DEL MATERIAL DENTRO Y FUERA DE LA OBRA.\n","M3 ","8.2300",0,"CERO PESOS 00/100 M.N.",0,275430]
["E","EDIFICIO E",null,null,null,null,{"$f":"TEXT(SUM(G23 + G28 + G52 + G64 + G79 + G81 + G85 + G96 + G101 + G103 + G109 + G117 + G127 + G129), \"$ #,##0.00 ;\")","v":"$ 0.00 "}]
["E.01(150)","TRABAJOS PRELIMINARES                             ",null,null,null,null,{"$f":"TEXT(SUM(G24:G27), \"$ #,##0.00 ;\")","v":"$ 0.00 "}]
[150110,"TRAZO Y NIVELACION DE EDIFICIOS ESTABLECIENDO REFERENCIAS DEFINITIVAS, CON TRANSITO Y NIVEL (EQUIPO TOPOGRAFICO), INCLUYE: PERSONAL TECNICO CALIFICADO, ESTACAS, MOJONERAS, LOCALIZACION DE ENTRE EJES, BANCOS DE NIVEL, MATERIALES PARA SEÑALAMIENTO, EQUIPO, HERRAMIENTA Y MANO DE OBRA.","M2 ","276.7000",0,"CERO PESOS 00/100 M.N.",0,275431]
[152204,"EXCAVACION EN CEPAS POR CUALQUIER MEDIO, MATERIAL TIPO \"B\", DE 0 A 2.00 M. DE PROFUNDIDAD, EN SECO, INCLUYE: AFINE DE TALUDES Y FONDO, TRASPALEOS,  MOVIMIENTOS Y ACARREOS DENTRO DE LA OBRA, HERRAMIENTAS Y MANO DE OBRA, MEDIDO EN BANCO.","M3 ","96.3000",0,"CERO PESOS 00/100 M.N.",0,275432]
[152404,"EXCAVACION A CIELO ABIERTO EN CAJON POR CUALQUIER MEDIO, MATERIAL TIPO \"B\", DE 0 A 2.00 M. DE PROFUNDIDAD, EN SECO, INCLUYE: AFINE DE TALUDES Y FONDO, TRAPALEOS,  MOVIMIENTOS Y ACARREOS DENTRO DE LA OBRA, HERRAMIENTAS Y MANO DE OBRA, MEDIDO EN BANCO.","M3 ","221.4000",0,"CERO PESOS 00/100 M.N.",0,275433]
[156002,"CARGA POR CUALQUIER MEDIO Y ACARREO EN CAMION DE MATERIAL DE DESPERDICIO PRODUCTO DE LAS EXCAVACIONES FUERA DE LA OBRA, A LUGAR PERMITIDO POR LAS AUTORIDADES CORRESPONDIENTES, MEDIDO EN BANCO. INCLUYE CARGA,  ACARREO Y DESCARGA A TIRO LIBRE, HERRAMIENTA, EQUIPO, MATERIALES DE CONSUMO Y MANO DE OBRA.","M3 ","317.7000",0,"CERO PESOS 00/100 M.N.",0,275434]
["E.02(160)","CIMENTACION                                       ",null,null,null,null,{"$f":"TEXT(SUM(G29:G51), \"$ #,##0.00 ;\")","v":"$ 0.00 "}]
[160222,"PLANTILLA DE CONCRETO F'C=100 KG/CM2, TMA=3/4\", DE 5.00 CM DE ESPESOR PROMEDIO. INCLUYE: MATERIALES, HERRAMIENTAS, AFINE, NIVELACION, LIMPIEZA, MANO DE OBRA Y ACARREO DE MATERIALES AL SITIO DE SU UTILIZACION.","M2 ","96.3000",0,"CERO PESOS 00/100 M.N.",0,275435]
[166299,"SUMINISTRO Y FABRICACION DE CONTRATRABE EN CIMENTACION DE  CONCRETO DE F´C=250 KG/CM2, TMA 3/4\" R.N CON DIMENSIONDE DE 0.21 X 0.35 M. ARMADA CON 4 VAR. # 4 + 2 VAR. DEL # 3 Y ESTRIBOS DEL #2@15 +  GRAPAS DEL #2@25 CM. PROMEDIO, INCLUYE: ARMADO, COLADO, CURADO, VIBRADO, CIMBRA COMUN, DESCIMBRA, DESPERDICIOS, TRASLAPES, CRUCES DE VARILLAS CON ELEMENTOS TRANSVERSALES, OCHAVOS EN ARISTAS, MANO DE OBRA, HERRAMIENTA Y ACARREO DE MATERIALES AL SITIO DE SU UTILIZACION, A CUALQUIER ALTURA.","ML ","21.0000",0,"CERO PESOS 00/100 M.N.",0,275436]
[166301,"SUMINISTRO Y FABRICACION DE CONTRATRABE EN CIMENTACION DE  CONCRETO DE F´C=250 KG/CM2, TMA 3/4\" R.N CON DIMENSIONDE DE 0.14 X 0.35 M. ARMADA CON 4 VARILLAS # 3 Y E.N° 2 @ 15 CM. PROMEDIO, INCLUYE: CIMBRA COMUN, DESCIMBRADO, CURADO, VIBRADO, CRUCES DE ACERO CON ELEMENTOS TRANSVERSALES,  PRUEBAS, MATERIALES MENORES Y TODO LO NECESARIO PARA SU CORRECTA EJECUCION.","ML ","33.2000",0,"CERO PESOS 00/100 M.N.",0,275437]
[166303,"SUMINISTRO Y FABRICACION DE CONTRATRABE EN CIMENTACION DE CONCRETO DE F´C=250 KG/CM2, TMA 3/4\" R.N CON DIMENSIONDE DE 0.14 X 0.35 M. ARMADA CON 4 VARILLAS # 4 Y E.N° 2 @ 15 CM. PROMEDIO, INCLUYE: ARMADO, COLADO, CURADO, VIBRADO, PRUEBAS DEL CONCRETO, CIMBRA COMUN, DESCIMBRA, DESPERDICIOS, TRASLAPES, CRUCES DE VARILLAS CON ELEMENTOS TRANSVERSALES, ANDAMIOS, MANO DE OBRA, HERRAMIENTA Y ACARREO DE MATERIALES AL SITIO DE SU UTILIZACION, A CUALQUIER ALTURA.","ML ","31.2000",0,"CERO PESOS 00/100 M.N.",0,275438]
[166307,"SUMINISTRO Y FABRICACION DE CONTRATRABE EN CIMENTACION DE  CONCRETO DE F´C=250 KG/CM2, TMA 3/4\" R.N CON DIMENSIONDE DE 0.25 X 0.55 M. ARMADA CON 4 VARILLAS # 5 Y E.N° 3 @ 25 CM. PROMEDIO, INCLUYE: ARMADO, COLADO, CURADO, VIBRADO, CIMBRA COMUN, DESCIMBRA, DESPERDICIOS, TRASLAPES, ESCUADRAS, CRUCE DE VARILLAS CON ELEMENTOS TRANSVERSALES, MANO DE OBRA, HERRAMIENTA Y ACARREO DE MATERIALES AL SITIO DE SU UTILIZACION.","ML ","7.4000",0,"CERO PESOS 00/100 M.N.",0,275439]
[167210,"CADENA PARA REMATE DE CIMENTACION, DE CONCRETO F'C=250 KG/CM2, T.M.A.=3/4\", CON SECCION DE 14 X 20 CMS., ARMADA CON 4 VARILLAS DEL # 3 Y ESTRIBOS DEL NO. 2 @ 20 CMS., INCLUYE: ARMADO, COLADO, CURADO, VIBRADO, CIMBRA COMUN, DESCIMBRA, DESPERDICIOS, MANO DE OBRA, HERRAMIENTA, MATERIALES Y ACARREO DE MATERIALES AL SITIO DE SU UTILIZACION.","ML ","10.6600",0,"CERO PESOS 00/100 M.N.",0,275440]
[167320,"DALA DE DESPLANTE DE CONCRETO F´C= 250 KG/CM2, T.M.A.= 3/4\", CON SECCION DE 14 X 25 CM., ARMADA CON 4 VARILLAS DEL #3 Y ESTRIBOS DEL #2 @ 20 CM., INCLUYE: ARMADO, COLADO, CURADO, VIBRADO, CIMBRA COMUN, DESCIMBRA, DESPERDICIOS, TRASLAPES, CRUCES DE VARILLAS CON ELEMENTOS TRANSVERSALES, MANO DE OBRA, HERRAMIENTA Y ACARREO DE MATERIALES AL SITIO DE SU UTILIZACION, A CUALQUIER ALTURA.","ML ","15.9000",0,"CERO PESOS 00/100 M.N.",0,275441]
[170012,"CIMBRA  ACABADO COMUN, EN CIMENTACION, INCLUYE: DESPERDICIO, HABILITADO, CIMBRADO Y DESCIMBRA, NIVELACION, PLOMEO MATERIAL, MANO DE OBRA , LIMPIEZA, HERRAMIENTA, ACARREO DEL MATRIAL DENTRO Y FUERA DE LA OBRA.","M2 ","35.1500",0,"CERO PESOS 00/100 M.N.",0,275442]
[173003,"SUMINISTRO, HABILITADO, ARMADO Y COLOCACION DE ACERO DE REFUERZO FY=4,200 KG/CM2 (G.E.), DE 3/8\" ( #3 ), EN CIMENTACION, INCLUYE: MATERIALES, HABILITADO,  DOBLECES,  SILLETAS, ALAMBRE, GANCHOS, ESCUADRAS, TRASLAPES, DESPERDICIOS HERRAMIENTAS, MANO DE OBRA Y ACARREO DE MATERIALES AL SITIO DE SU COLOCACION.","KG ","335.0000",0,"CERO PESOS 00/100 M.N.",0,275443]
[173004,"SUMINISTRO, HABILITADO, ARMADO Y COLOCACION DE ACERO DE REFUERZO FY=4,200 KG/CM2 (G.E.), DE 1/2\" ( #4 ), EN CIMENTACION, INCLUYE: MATERIALES, HABILITADO,  DOBLECES,  SILLETAS, ALAMBRE, GANCHOS, ESCUADRAS, TRASLAPES, DESPERDICIOS HERRAMIENTAS, MANO DE OBRA Y ACARREO DE MATERIALES AL SITIO DE SU COLOCACION.","KG ","275.0000",0,"CERO PESOS 00/100 M.N.",0,275444]
[173005,"SUMINISTRO, HABILITADO, ARMADO Y COLOCACION DE ACERO DE REFUERZO FY=4,200 KG/CM2 (G.E.), DE 5/8\" (#5 ), EN CIMENTACION, INCLUYE: MATERIALES, HABILITADO,  DOBLECES,  SILLETAS, ALAMBRE, GANCHOS, ESCUADRAS, TRASLAPES, DESPERDICIOS HERRAMIENTAS, MANO DE OBRA Y ACARREO DE MATERIALES AL SITIO DE SU COLOCACION.","KG ","35.5000",0,"CERO PESOS 00/100 M.N.",0,275445]
[173008,"SUMINISTRO, HABILITADO, ARMADO Y COLOCACION DE ACERO DE REFUERZO FY=4,200 KG/CM2 (G.E.), DE 1\" (#8 ), EN CIMENTACION, INCLUYE: MATERIALES, HABILITADO,  DOBLECES,  SILLETAS, ALAMBRE, GANCHOS, ESCUADERAS, TRASLAPES, DESPERDICIOS HERRAMIENTAS, MANO DE OBRA Y ACARREO DE MATERIALES AL SITIO DE SU COLOCACION.","KG ","55.5000",0,"CERO PESOS 00/100 M.N.",0,275446]
[176008,"SUMINISTRO Y COLOCACION DE CONCRETO HECHO EN OBRA F'C=250 KG/CM2, TMA= 3/4\", R.N. EN CIMENTACION. INCLUYE: TENDIDO, RASTREADO, VIBRADO, NIVELACION, HERRAMIENTAS, LIMPIEZA, PRUEBAS,  CURADO CON CURACRETO ROJO,  DESPERDICIO Y MANO DE OBRA.","M3 ","9.6000",0,"CERO PESOS 00/100 M.N.",0,275447]
[180054,"RELLENO EN CEPAS POR CUALQUIER MEDIO, CON MATERIAL DE BANCO, (ARENA LIMOSA) COMPACTADO AL 95% PROCTOR, EN CAPAS DE 15 CM, MEDIDO COMPACTO. INCLUYE:  SUMINISTRO DE AGUA PARA LOGRAR HUMEDAD OPTIMA, DESPERDICIOS, TENDIDO, TRASPALEOS,  EQUIPO, PRUEBAS DE COMPACTACION, AFINE, NIVELACION, HERRAMIENTAS, MANO DE OBRA Y  ACARREO HASTA EL SITIO DE SU COLOCACION.  (VOLUMEN MEDIDO COMPACTADO).","M3 ","38.9000",0,"CERO PESOS 00/100 M.N.",0,275448]
[180103,"RELLENO COMPACTADO AL 95% PROCTOR, CON MATERIAL DE BANCO, EN CAPAS DE 15 CM DE ESPESOR, AGREGANDO AGUA PARA LOGRAR SU HUMEDAD OPTIMA, POR CUALQUIER MEDIO, INCLUYE: SUMINISTRO DE AGUA PARA LOGRAR HUMEDAD OPTIMA, TENDIDO, TRASPALEOS,  DESPERDICIOS, EQUIPO, PRUEBAS DE COMPACTACION, AFINE, NIVELACION, HERRAMIENTAS, MANO DE OBRA Y  ACARREO HASTA EL SITIO DE SU COLOCACION.  (VOLUMEN MEDIDO COMPACTADO).","M3 ","48.6000",0,"CERO PESOS 00/100 M.N.",0,275449]
[180417,"RELLENO CON MATERIAL DE BANCO, AGREGANDO CALHIDRA EN PROPORCION 25 KG/M3, COMPACTADO AL 95% PROCTOR EN CAPAS DE 15 CM., A CUALQUIER PROFUNDIDAD, INCLUYE: MEZCLADO, TENDIDO, INCORPORACION DE AGUA PARA LOGRAR HUMEDAD OPTIMA, COMPACTACION POR MEDIOS CUALQUIER MEDIO, NIVELADO, TRASPALEOS, PRUEBAS DE COMPACTACION Y LOS ACARREOS NECESARIOS. MEDIDO COMPACTO.","M3 ","14.5000",0,"CERO PESOS 00/100 M.N.",0,275450]
[180914,"RELLENO COMPACTADO CON EQUIPO MECANICO DE SUELO-GRAVA, A BASE DE MATERIAL DE BANCO  (TEPETATE, ARENA, ETC) Y GRAVA DE 3/4\" DE DIAMETRO A FINOS, CON UNA PROPORCION DE 50-50 %, EN VOLUMEN, A CUALQUIER PROFUNDIDAD, COMPACTADO AL 95% PROCTOR, EN CAPAS DE 15 CM. INCLUYE: SUMINISTRO DE AGUA PARA LOGRAR HUMEDAD OPTIMA, MEZCLACO, TENDIDO, TRASPALEOS,  DESPERDICIOS, EQUIPO, PRUEBAS DE COMPACTACION, AFINE, NIVELACION, HERRAMIENTAS, MANO DE OBRA Y  ACARREO HASTA EL SITIO DE SU COLOCACION.  (VOLUMEN MEDIDO COMPACTADO).","M3 ","92.0000",0,"CERO PESOS 00/100 M.N.",0,275451]
[182130,"RELLENO ACOMODADO POR CUALQUIER MEDIO, CON PIEDRAPLEN DE TEZONTLE ROJO CRIBADO DE GRANULOMETRIA CONTROLADA 1\" A 3\" DE DIAMETRO, LIBRE DE FINOS, EN CEPAS Y/O CAJON, EN CAPAS DE 10 CM. DE ESPESOR, INCLUYE:  MATERIALES, BANDEADO, TENDIDO, NIVELADO, DESPERDICIOS, TRASPALEOS, HERRAMIENTAS, MANO DE OBRA Y TODOS LOS ACARREOS NECESARIOS AL SITIO DE SU COLOCACION. (MEDIDO YA COLOCADO)","M3 ","150.5000",0,"CERO PESOS 00/100 M.N.",0,275452]
[190022,"MURETE DE ENRRASE EN CIMENTACION CON BLOCK SOLIDO DE JALCRETO 11 X 14 X 28 CM DE SECCION, A SOGA, ASENTADO CON MORTERO CEMENTO-ARENA EN PROP. 1:3, ACABADO COMUN, INCLUYE:TRAZO, NIVELACION, PLOMEO, HERRAMIENTAS, DESPERDICIOS, MANO DE OBRA, LIMPIEZA Y ACARREO DE MATERIALES AL SITIO DE SU UTILIZACION.","M2 ","53.4000",0,"CERO PESOS 00/100 M.N.",0,275453]
[190042,"MURETE DE ENRRASE EN CIMENTACION CON BLOCK SOLIDO DE JALCRETO 11 X 14 X 28 CM DE SECCION, A TEZON, ASENTADO CON MORTERO CEMENTO-ARENA EN PROP. 1:3, ACABADO COMUN, INCLUYE:TRAZO, NIVELACION, PLOMEO, HERRAMIENTAS, DESPERDICIOS, MANO DE OBRA, LIMPIEZA Y ACARREO DE MATERIALES AL SITIO DE SU UTILIZACION.","M2 ","39.8000",0,"CERO PESOS 00/100 M.N.",0,275454]
[192511,"ANCLAJE DE CASTILLO EN CIMENTACION 14 X 15 CMS., CONCRETO F'C=250 KG/CM2, ARMADO CON 4 VARILLAS DEL #3 (3/8\") Y ESTRIBOS DEL #2 A CADA 15 CMS., INCLUYE: ARMADO, COLADO, CURADO, VIBRADO, CIMBRA COMUN, DESCIMBRA, DESPERDICIOS, TRASLAPES, CRUCES DE VARILLAS CON ELEMENTOS TRANSVERSALES, ANDAMIOS, MANO DE OBRA, HERRAMIENTA Y ACARREO DE MATERIALES AL SITIO DE SU UTILIZACION, A CUALQUIER ALTURA.","ML ","6.2000",0,"CERO PESOS 00/100 M.N.",0,275455]
[192514,"ANCLAJE DE CASTILLO EN CIMENTACION 14 X 20 CMS., CONCRETO F'C=250 KG/CM2, ARMADO CON 4 VARILLAS DEL #3 (3/8\") Y ESTRIBOS DEL #2 A CADA 15 CMS., INCLUYE: ARMADO, COLADO, CURADO, VIBRADO, CIMBRA COMUN, DESCIMBRA, DESPERDICIOS, TRASLAPES, CRUCES DE VARILLAS CON ELEMENTOS TRANSVERSALES, ANDAMIOS, MANO DE OBRA, HERRAMIENTA Y ACARREO DE MATERIALES AL SITIO DE SU UTILIZACION, A CUALQUIER ALTURA.","ML ","10.5000",0,"CERO PESOS 00/100 M.N.",0,275456]
[192518,"ANCLAJE DE CASTILLO EN CIMENTACION 14 X 30 CMS., CONCRETO F'C=250 KG/CM2, ARMADO CON 4 VARILLAS DEL #3 (3/8\") Y ESTRIBOS DEL #2 A CADA 15 CMS., INCLUYE: ARMADO, COLADO, CURADO, VIBRADO, CIMBRA COMUN, DESCIMBRA, DESPERDICIOS, TRASLAPES, CRUCES DE VARILLAS CON ELEMENTOS TRANSVERSALES, ANDAMIOS, MANO DE OBRA, HERRAMIENTA Y ACARREO DE MATERIALES AL SITIO DE SU UTILIZACION, A CUALQUIER ALTURA.","ML ","31.9500",0,"CERO PESOS 00/100 M.N.",0,275457]
["E.03(200)","ESTRUCTURA                                        ",null,null,null,null,{"$f":"TEXT(SUM(G53:G63), \"$ #,##0.00 ;\")","v":"$ 0.00 "}]
[210122,"CIMBRA DE MADERA, ACABADO APARENTE, EN COLUMNAS, INCLUYE: HABILITADO, CHAFLANES, CIMBRA, DESCIMBRA, HERRAMIENTAS, LIMPIEZAS, MANO DE OBRA  Y ACARREO DE MATERIALES AL SITIO DE SU UTILIZACION, A CUALQUIER NIVEL.","M2 ","8.4000",0,"CERO PESOS 00/100 M.N.",0,275458]
[210222,"CIMBRA DE MADERA, ACABADO APARENTE, EN TRABES, INCLUYE: HABILITADO, CHAFLANES, CIMBRA, DESCIMBRA, DESPERDICIOS,  HERRAMIENTAS, PUNTALES, ANDAMIOS, LIMPIEZAS, MANO DE OBRA  Y ACARREO DE MATERIALES AL SITIO DE SU UTILIZACION, A CUALQUIER NIVEL.","M2 ","71.8500",0,"CERO PESOS 00/100 M.N.",0,275459]
[210322,"CIMBRA DE MADERA, ACABADO APARENTE, EN LOSAS, INCLUYE: HABILITADO, CHAFLANES, CIMBRA, DESCIMBRA, GOTEROS, HERRAMIENTAS, LIMPIEZAS, MANO DE OBRA  Y ACARREO DE MATERIALES AL SITIO DE SU UTILIZACION, A CUALQUIER NIVEL.","M2 ","250.4000",0,"CERO PESOS 00/100 M.N.",0,275460]
[213003,"SUMINISTRO, HABILITADO, ARMADO Y COLOCACION DE ACERO DE REFUERZO FY=4,200 KG/CM2 (G.E.), DE 3/8\" (# 3 ), EN ESTRUCTURA, INCLUYE: MATERIALES, HABILITADO,  DOBLECES,  SILLETAS, ALAMBRE, GANCHOS, ESCUADRAS, TRASLAPES, DESPERDICIOS HERRAMIENTAS, MANO DE OBRA Y ACARREO DE MATERIALES AL SITIO DE SU COLOCACION.","KG ","2,168.3000",0,"CERO PESOS 00/100 M.N.",0,275461]
[213004,"SUMINISTRO, HABILITADO, ARMADO Y COLOCACION DE ACERO DE REFUERZO FY=4,200 KG/CM2 (G.E.), DE 1/2\" (# 4 ), EN ESTRUCTURA, INCLUYE: MATERIALES, HABILITADO,  DOBLECES,  SILLETAS, ALAMBRE, GANCHOS, ESCUADRAS, TRASLAPES, DESPERDICIOS HERRAMIENTAS, MANO DE OBRA Y ACARREO DE MATERIALES AL SITIO DE SU COLOCACION.","KG ","399.4000",0,"CERO PESOS 00/100 M.N.",0,275462]
[213005,"SUMINISTRO, HABILITADO, ARMADO Y COLOCACION DE ACERO DE REFUERZO FY=4,200 KG/CM2 (G.E.), DE 5/8\" (# 5 ), EN ESTRUCTURA, INCLUYE: MATERIALES, HABILITADO,  DOBLECES,  SILLETAS, ALAMBRE, GANCHOS, ESCUADRAS, TRASLAPES, DESPERDICIOS HERRAMIENTAS, MANO DE OBRA Y ACARREO DE MATERIALES AL SITIO DE SU COLOCACION.","KG ","177.6500",0,"CERO PESOS 00/100 M.N.",0,275463]
[213008,"SUMINISTRO, HABILITADO, ARMADO Y COLOCACION DE ACERO DE REFUERZO FY=4,200 KG/CM2 (G.E.), DE 1\" (#8 ) , EN ESTRUCTURA, INCLUYE: MATERIALES, HABILITADO,  DOBLECES,  SILLETAS, ALAMBRE, GANCHOS, ESCUADRAS, TRASLAPES, SOLDADURA DESPERDICIOS HERRAMIENTAS, MANO DE OBRA Y ACARREO DE MATERIALES AL SITIO DE SU COLOCACION.","KG ","240.0000",0,"CERO PESOS 00/100 M.N.",0,275464]
[216422,"SUMINISTRO Y COLOCACION DE CONCRETO  HECHO EN OBRA, F'C=250 KG/CM2, T.M.A.= 3/4\", R. N., EN COLUMNAS, INCLUYE: CURADO, VIBRADO Y DESPERDICIO, A CUALQUIER NIVEL.","M3 ","0.8000",0,"CERO PESOS 00/100 M.N.",0,275465]
[216432,"SUMINISTRO Y COLOCACION DE CONCRETO  HECHO EN OBRA, F'C=250 KG/CM2, T.M.A.= 3/4\", R. N., EN TRABES Y FALDONES, INCLUYE: CURADO, VIBRADO Y DESPERDICIO, A CUALQUIER NIVEL.","M3 ","6.6000",0,"CERO PESOS 00/100 M.N.",0,275466]
[216442,"SUMINISTRO Y COLOCACION DE CONCRETO  HECHO EN OBRA, F'C=250 KG/CM2, T.M.A.= 3/4\", R. N., EN LOSAS, INCLUYE: AFINE, ACABADO, CURADO, VIBRADO Y DESPERDICIO, A CUALQUIER NIVEL.","M3 ","26.7000",0,"CERO PESOS 00/100 M.N.",0,275467]
[322512,"ACABADO PULIDO Y/O APALILLADO FINO POR CUALQUIER MEDIO DE LOSA Y/O ELEMENTOS DE CONCRETO (GRADAS, PISOS, AZOTEAS Y/O ENTREPISOS DE CONCRETO), TERMINADO EN FORMA INTEGRAL, (SIN UTILIZAR PASTA),  INCLUYE: DESPERDICIOS, ACARREOS, REGLEADO, REMATES, JUNTAS FRIAS CON VOLTEADOR, HERRAMIENTAS Y MANO DE OBRA.","M2 ","266.3000",0,"CERO PESOS 00/100 M.N.",0,275468]
["E.04(310)","MUROS, CADENAS, CASTILLOS Y REPIZONES.            ",null,null,null,null,{"$f":"TEXT(SUM(G65:G78), \"$ #,##0.00 ;\")","v":"$ 0.00 "}]
[310170,"DALA DE CONCRETO F'C=250 KG/CM2, T.M.A.=3/4\", CON SECCION DE 14 X 15 CMS., ARMADA CON 4 VARILLAS DEL # 3 Y ESTRIBOS DEL NO. 2 @ 30 CMS., INCLUYE: ARMADO, COLADO, CURADO, VIBRADO, CIMBRA COMUN, DESCIMBRA, TRASLAPES, CRUCES DE VARILLAS CON ELEMENTOS TRANSVERSALES, DESPERDICIOS, MANO DE OBRA, HERRAMIENTA Y ACARREO DE MATERIALES AL SITIO DE SU UTILIZACION, A CUALQUIER ALTURA.","ML ","18.9000",0,"CERO PESOS 00/100 M.N.",0,275469]
[310172,"DALA DE CONCRETO F'C=250 KG/CM2, T.M.A.=3/4\", CON SECCION DE 14 X 15 CMS., ARMADA CON 4 VARILLAS DEL # 3 Y ESTRIBOS DEL NO. 2 @ 20 CMS., INCLUYE: ARMADO, COLADO, CURADO, VIBRADO, CIMBRA COMUN, DESCIMBRA, TRASLAPES, CRUCES DE VARILLAS CON ELEMENTOS TRANSVERSALES, DESPERDICIOS, MANO DE OBRA, HERRAMIENTA Y ACARREO DE MATERIALES AL SITIO DE SU UTILIZACION, A CUALQUIER ALTURA.","ML ","39.0600",0,"CERO PESOS 00/100 M.N.",0,275470]
[310178,"DALA DE CONCRETO F'C=250 KG/CM2, T.M.A.=3/4\", CON SECCION DE 14 X 20 CMS., ARMADA CON 4 VARILLAS DEL # 3 Y ESTRIBOS DEL NO. 2 @ 15 CMS., INCLUYE: ARMADO, COLADO, CURADO, VIBRADO, CIMBRA COMUN, DESCIMBRA, TRASLAPES, CRUCES DE VARILLAS CON ELEMENTOS TRANSVERSALES, DESPERDICIOS, MANO DE OBRA, HERRAMIENTA Y ACARREO DE MATERIALES AL SITIO DE SU UTILIZACION, A CUALQUIER ALTURA.","ML ","40.5000",0,"CERO PESOS 00/100 M.N.",0,275471]
[310220,"DALA DE CONCRETO F'C=250 KG/CM2, T.M.A.=3/4\", CON SECCION DE 14 X 20 CMS., ARMADA CON 4 VARILLAS DEL # 4 Y ESTRIBOS DEL NO. 2 @ 20 CMS., INCLUYE: ARMADO, COLADO, CURADO, VIBRADO, CIMBRA COMUN, DESCIMBRA, DESPERDICIOS, MANO DE OBRA, HERRAMIENTA Y ACARREO DE MATERIALES AL SITIO DE SU UTILIZACION, A CUALQUIER ALTURA.","ML ","39.0000",0,"CERO PESOS 00/100 M.N.",0,275472]
[310230,"DALA DE CONCRETO F'C=250 KG/CM2, T.M.A.=3/4\", CON SECCION DE 21 X 15 CMS., ARMADA CON 6 VARILLAS DEL # 3 Y UN ESTRIBO + UNA GRAPA DEL NO. 2 @ 25 CMS., INCLUYE: ARMADO, COLADO, CURADO, VIBRADO, CIMBRA COMUN, DESCIMBRA, TRASLAPES, CRUCES DE VARILLAS CON ELEMENTOS TRANSVERSALES, DESPERDICIOS, MANO DE OBRA, HERRAMIENTA Y ACARREO DE MATERIALES AL SITIO DE SU UTILIZACION, A CUALQUIER ALTURA.","ML ","23.6000",0,"CERO PESOS 00/100 M.N.",0,275473]
[310538,"DALA DE CONCRETO F'C=250 KG/CM2, T.M.A.=3/4\", CON SECCION DE 14 X 10 CMS., SIN ARMAR, INCLUYE: COLADO, CURADO, VIBRADO, CIMBRA APARENTE, DESCIMBRA, DESPERDICIOS, MANO DE OBRA, HERRAMIENTA Y ACARREO DE MATERIALES AL SITIO DE SU UTILIZACION, A CUALQUIER ALTURA.","ML ","73.8600",0,"CERO PESOS 00/100 M.N.",0,275474]
[310540,"DALA DE CONCRETO F'C=250 KG/CM2, T.M.A.=3/4\", CON SECCION DE 21 X 10 CMS., SIN ARMAR, INCLUYE: COLADO, CURADO, VIBRADO, CIMBRA APARENTE, DESCIMBRA, DESPERDICIOS, MANO DE OBRA, HERRAMIENTA Y ACARREO DE MATERIALES AL SITIO DE SU UTILIZACION, A CUALQUIER ALTURA.","ML ","20.8000",0,"CERO PESOS 00/100 M.N.",0,275475]
[312212,"CASTILLO DE CONCRETO F'C=250 KG/CM2, T.M.A.=3/4\", CON SECCION DE 14 X 15 CMS., ARMADA CON 4 VARILLAS DEL # 3 Y ESTRIBOS DEL NO. 2 @ 15 CMS., INCLUYE: ARMADO, COLADO, CURADO, VIBRADO, CIMBRA COMUN, DESCIMBRA, DESPERDICIOS, TRASLAPES, CRUCES DE VARILLAS CON ELEMENTOS TRANSVERSALES, ANDAMIOS, MANO DE OBRA, HERRAMIENTA Y ACARREO DE MATERIALES AL SITIO DE SU UTILIZACION, A CUALQUIER ALTURA.","ML ","21.9100",0,"CERO PESOS 00/100 M.N.",0,275476]
[312256,"CASTILLO DE CONCRETO F'C=250 KG/CM2, T.M.A.=3/4\", CON SECCION DE 14 X 20 CMS., ARMADA CON 4 VARILLAS DEL # 3 Y ESTRIBOS DEL NO. 2 @ 15 CMS., INCLUYE: ARMADO, COLADO, CURADO, VIBRADO, CIMBRA COMUN, DESCIMBRA, TRASLAPES, CRUCES DE VARILLAS CON ELEMENTOS TRANSVERSALES, DESPERDICIOS, MANO DE OBRA, HERRAMIENTA Y ACARREO DE MATERIALES AL SITIO DE SU UTILIZACION, A CUALQUIER ALTURA.","ML ","17.7500",0,"CERO PESOS 00/100 M.N.",0,275477]
[312257,"CASTILLO DE CONCRETO F'C=250 KG/CM2, T.M.A.=3/4\", CON SECCION DE 14 X 21 CMS., ARMADA CON 4 VARILLAS DEL # 3 Y ESTRIBOS DEL NO. 2 @ 15 CMS., INCLUYE: ARMADO, COLADO, CURADO, VIBRADO, CIMBRA COMUN, DESCIMBRA, TRASLAPES, CRUCES DE VARILLAS CON ELEMENTOS TRANSVERSALES, DESPERDICIOS, MANO DE OBRA, HERRAMIENTA Y ACARREO DE MATERIALES AL SITIO DE SU UTILIZACION, A CUALQUIER ALTURA.","ML ","72.1000",0,"CERO PESOS 00/100 M.N.",0,275478]
[314032,"MURO DE TABIQUE DE LAMA, DE 14 CMS. DE ESPESOR PROMEDIO, A SOGA, CON TABIQUE DE LAMA 7 X 14 X 28 CMS., ACABADO COMUN, ASENTADO CON MORTERO CEMENTO-ARENA EN PROPORCION 1:3, EN CUALQUIER NIVEL, INCLUYE: TRAZO, NIVELACION, PLOMEO, ANDAMIOS, DESPERDICIOS, MANO DE OBRA, LIMPIEZA Y ACARREO DE MATERIALES AL SITIO DE SU UTILIZACION.","M2 ","129.0900",0,"CERO PESOS 00/100 M.N.",0,275479]
[314052,"MURO DE TABIQUE DE LAMA, DE 22 CMS. DE ESPESOR PROMEDIO, COMBINADO, CON TABIQUE DE LAMA 7 X 14 X 28 CMS., ACABADO COMUN, ASENTADO CON MORTERO CEMENTO-ARENA DE RIO EN PROPORCION 1:3, EN CUALQUIER NIVEL, INCLUYE: TRAZO, NIVELACION, PLOMEO, DESPERDICIOS, HERRAMIENTAS, ANDAMIOS, LIMPIEZAS, MANO DE OBRA Y ACARREO DE MATERIALES AL SITIO DE SU UTILIZACION. A CUALQUIE ALTURA.","M2 ","35.4500",0,"CERO PESOS 00/100 M.N.",0,275480]
[344012,"IMPERMEABILIZACION DE CADENAS DE DESPLANTE EN MUROS, CON UNA CAPA DE EMULTEX (O SIMILAR), DOS CAPAS DE BITUMEX (O SIMILAR) Y UNA CAPA DE CRISTAFLEX (O SIMILAR).","ML ","106.3600",0,"CERO PESOS 00/100 M.N.",0,275481]
[360022,"SEPARACION MURO-COLUMNA CON CANAL LAMINA NO. 18 DE 28 CMS. DE  DESARROLLO,  PLACA  POLIESTITENO 3/4\" X 15 CM. ANCHO, FIJADA A COLUMNA, INCLUYE: ELEMENTOS DE FIJACION, MATERIALES MENORES, HERRAMIENTAS, DESPERDICIOS, PINTURA DE ESMALTE EN CANAL DE LAMINA, LIMPIEZA, MANO DE OBRA  Y ACARREOS AL SITIO DE SU INSTALACION.","ML ","9.6000",0,"CERO PESOS 00/100 M.N.",0,275482]
["E.05(319)","ENTREPISOS, CUBIERTA Y ACABADOS DE AZOTEA         ",null,null,null,null,{"$f":"TEXT(SUM(G80:G80), \"$ #,##0.00 ;\")","v":"$ 0.00 "}]
[344125,"IMPERMEABILIZACION DE MUROS O LOSAS, A BASE DE MEMBRANA PREFABRICADA, MCA. IMPERQUIMIA, UNIPLAS AERO PLUS SBS, ALTO DESEMPEÑO CON VENTILACION ANTIABOLSAMIENTOS, FABRICADA A BASE DE ASFALTOS MODIFICADOS CON POLIMEROS SINTETICOS SBS (ESTIRENO BUTADIENO ESTIRENO) REFORZADA CON MALLA POLIESTER DE ALTA RESISTENCIA, ACABADO APARENTE A BASE DE GRAVILLA ESMALTADA A FUEGO, 4.5 MM  DE ESPESOR TOTAL, COLOR ROJO TERRACOTA, GARANTIA POR ESCRITO DE 10 AÑOS, POR LA EMPRESA CONTRATISTA., INCLUYE: LIMPIEZA Y PREPARACION DE LA SUPERFICIE, APLICACION DE PRIMER IMPERCOAT PRIMARIO SL, PARA ANCLAJE Y TAPAPORO DE LA SUPERFICIE, SELLADO DE FISURAS Y GRIETAS A BASE DE CEMENTO PLASTICO BITUMINOSO IMPERCOAT CEMENTO SBS, SUMINISTRO Y COLOCACION DE MEMBRANA POR MEDIO DE TERMOFUSION A BASE DE FUEGO DE SOPLETE DE GAS BUTANO, HACIENDO TRASLAPES MINIMOS DE 0.10 MTS. EN AMBOS SENTIDOS, SELLADO DE ORILLAS, REMATES Y TRASLAPES, MATERIALES MENORES Y DE CONSUMO, CORTES, DESPERDICIOS, LIMPIEZA GENERAL, HERRAMIENTAS, MANO DE OBRA ESPECIALIZADA Y ACARREOS AL SITIO DE SU COLOCACION.","M2 ","266.3000",0,"CERO PESOS 00/100 M.N.",0,275483]
["E.06(355)","RECUBRIMIENTOS Y ACABADOS                         ",null,null,null,null,{"$f":"TEXT(SUM(G82:G84), \"$ #,##0.00 ;\")","v":"$ 0.00 "}]
[355022,"APLANADO DE MUROS Y/O TECHOS CON MORTERO CEMENTO-CAL-ARENA DE RIO EN PROP. 1:2:6 DE 2 CM. DE ESPESOR PROMEDIO, A PLOMO Y REGLA, ACABADO APALILLADO FINO, INCLUYE: MATERIALES, DESPERDICIOS, ANDAMIOS, HERRAMIENTAS, PLOMEO, NIVELACION, REMATES, LIMPIEZA DEL AREA DE TRABAJO Y ACARREO DE MATERIALES AL SITIO DE SU UTILIZACION. A CUALQUIER NIVEL.\n","M2 ","422.3800",0,"CERO PESOS 00/100 M.N.",0,275484]
[357322,"BOQUILLAS EN PUERTAS Y VENTANAS, CON MORTERO CEMENTO-CAL-ARENA 1:2:6, INCLUYE: ANDAMIOS Y ACARREO DE MATERIALES AL SITIO DE SU UTILIZACION.","ML ","86.2300",0,"CERO PESOS 00/100 M.N.",0,275485]
[357352,"FILETES Y BOLEADOS, HECHOS CON MORTERO CEMENTO-CAL-ARENA EN PROPORCION 1:2:6, INCLUYE: DESPERDICIOS, ANDAMIOS Y ACARREO DE MATERIALES AL SITIO DE SU UTILIZACION, A CUALQUIER NIVEL.","ML ","206.4800",0,"CERO PESOS 00/100 M.N.",0,275486]
["E.07(372)","PISOS                                             ",null,null,null,null,{"$f":"TEXT(SUM(G86:G95), \"$ #,##0.00 ;\")","v":"$ 0.00 "}]
[344511,"SUMINISTRO Y COLOCACION DE JUNTA DE CONTRACCION ELASTOMERICA. EN PISOS CON UNA SECCION TRANSVERSAL DE 6 X 10 MM, A BASE DE SILICON DE COLOR PARA JUNTAS DE DILATACION, INCLUYE: LIMPIEZA DEL AREA A TRATAR, DESPERDICIOS Y ACARREO DEL MATERIAL AL SITIO DE SU COLOCACION.","ML ","13.2000",0,"CERO PESOS 00/100 M.N.",0,275487]
[360565,"SUMINISTRO Y COLOCACION DE MALLA ELECTROSOLDADA 6X6-10/10 COMO REFUERZO EN PISOS DE CONCRETO, INCLUYE: DESPERDICIOS, TRASLAPES, HERRAMIENTA Y ACARREO DEL MATERIAL AL SITIO DE SU COLOCACION.","M2 ","221.1200",0,"CERO PESOS 00/100 M.N.",0,275488]
[372242,"FIRME DE CONCRETO F´C= 150 KG/CM2 TMA= 3/4\",  DE 8 CM DE ESPESOR, ACABADO APALILLADO. INCLUYE: TRAZO, NIVELACION, AFINE Y COMPACTACION DEL TERRENO, AGUA, MATERIALES, EXTENDIDO, REGLEADO, CURADO, DESPERDICIOS, HERRAMIENTAS, LIMPIEZA, MANO DE OBRA Y ACARREO DEL MATERIAL AL SITIO DE SU UTILIZACION","M2 ","183.6400",0,"CERO PESOS 00/100 M.N.",0,275489]
[372245,"FIRME DE CONCRETO F´C= 150 KG/CM2 TMA= 3/4\",  DE 16 CM DE ESPESOR, ACABADO APALILLADO. INCLUYE: TRAZO, NIVELACION, AFINE Y COMPACTACION DEL TERRENO, AGUA, MATERIALES, EXTENDIDO, REGLEADO, CURADO, DESPERDICIOS, HERRAMIENTAS, LIMPIEZA, MANO DE OBRA Y ACARREO DEL MATERIAL AL SITIO DE SU UTILIZACION","M2 ","6.4200",0,"CERO PESOS 00/100 M.N.",0,275490]
[373022,"PISO DE CONCRETO F'C=150 KG/CM², T.M.A. 3/4\", DE 0.10 M. DE ESPESOR, COLADO EN CUADROS NO MAYORES DE 3.00 ML POR LADO, INCLUYE: TRAZO, NIVELACION, AFINE Y COMPACTACION DEL TERRENO, AGUA, DESPERDICIOS, ACARREOS, REGLEADO, ACABADO INTEGRAL RAYADO CON BROCHA DE PELO (SIN UTILIZACION DE PASTA), CIMBRA EN FRONTERAS, DESCIMBRA, COLADO, CURADO, REMATES, ESCALONADO, MUESTREADO, JUNTAS FRIAS CON VOLTEADOR, HERRAMIENTAS Y MANO DE OBRA.","M2 ","31.0000",0,"CERO PESOS 00/100 M.N.",0,275491]
[373546,"CEJA DE CONCRETO F'C=250 KG/CM2, TMA=3/4\" DE 15 X 10 CM DE SECCION, ARMADA CON 1 VARILLA #3 (3/8\") Y ESTRIBOS DE 1/4\" @ 25.0 CM, EN CUALQUIER NIVEL. INCLUYE: CIMBRA APARENTE, DESCIMBRA, COLADO, VIBRADO, CURADO, PERFILADO, CHAFLANES, GOTERO, LIMPIEZA, HERRAMIENTAS, MATERIALES, DESPERDICIOS Y MANO DE OBRA.","ML ","52.1200",0,"CERO PESOS 00/100 M.N.",0,275492]
[373766,"FORJADO DE NARIZ DE REMATE EN PISO DE  BANQUETAS, CON 10.0  X  10.0 CM. DE SECCION, INCLUYE SOLO: CIMBRA APARENTE, DESCIMBRA, GOTERO, FORJADO, CHAFLANES, PERFILADO, DESPERDICIOS, HERRAMIENTAS, Y MANO DE OBRA. (NO INCLUYE CONCRETO).","ML ","29.2000",0,"CERO PESOS 00/100 M.N.",0,275493]
[374509,"GUARNICION O MACHUELO DE CONCRETO SIMPLE F'C=150 KG/CM2 CON SECCION DE 15 X 35 CMS., CON CIMBRA APARENTE, INCLUYE: TRAZO, EXCAVACION, CONFORMACION Y COMPACTACION DEL TERRENO NATURAL CON HERRAMIENTA MANUAL, INCORPORACION DE HUMEDAD OPTIMA, RETIRO DEL MATERIAL PRODUCTO DE LA EXCAVACION, CIMBRA APARENTE Y DESCIMBRA, COLADO, VIBRADO, CURADO, SEÑALAMIENTO PREVENTIVO, MATERIALES, HERRAMIENTAS, MANO DE OBRA Y ACARREO DE MATERIALES AL SITIO DE SU UTILIZACION.","ML ","28.5000",0,"CERO PESOS 00/100 M.N.",0,275494]
[376146,"SUMINISTRO Y COLOCACION DE CENEFA DE 15.00 CM APROXIMADAMENTE A BASE DE  PISO DE LOSETA CERAMICA DE PRIMERA, QUE DEBERA CUMPLIR CON LAS SIGUIENTES CARACTERISTICAS TECNICAS: ABSORCION <= 3% , COEFICIENTE DE ESTATICO DE FRICCION >= 0.5, MODULO DE RUPTURA >= 300 KG/CM², PEI, RESISTENCIA A LA ABRASION VISIBLE 1500 CICLOS (PEI IV), RESISTENTE AL MANCHADO, RESISTENCIA AL RAYADO >= 5.0 MOHS, RESISTENTE A LOS QUIMICOS, ASENTADO CON PEGA PISO Y JUNTEADO CON JUNTEADOR DE COLOR, CON JUNTAS DE 4.00 MM. DE ANCHO MINIMO. INCLUYE: HERRAMIENTAS, MATERIALES, TRAZO, CORTES,  NIVELACION,  LIMPIEZA, DESPERDICIOS, MANO DE OBRA Y ACARREO DE MATERIALES AL SITIO DE SU UTILIZACION.","ML ","1.2000",0,"CERO PESOS 00/100 M.N.",0,275495]
[962162,"SUMINISTRO Y COLOCACION DE PISO DE  LOSETA CERAMICA DE 33 X 33 CM., MCA. INTERCERAMIC DE PRIMERA, LINEA NIZA, DE CUALQUIER COLOR, GRADO DE DUREZA (PEI) \"IV\" , ASENTADO CON PEGAPISO Y JUNTEDO CON JUNTEADOR DE COLOR,  JUNTAS DE 4 MM. DE ANCHO, INCLUYE: TRAZO, CORTE, REMATES, ESCUADRE, DESPERDICIOS, DESPATINADO, EMBOQUILLADOS, CERTIFICADO DE CALIDAD, HERRAMIENTAS, MATERIALES,  MANO DE OBRA, LIMPIEZA  Y ACARREO DE MATERIALES AL SITIO DE SU UTILIZACION, A CUALQUIER ALTURA.","M2 ","56.0000",0,"CERO PESOS 00/100 M.N.",0,275496]
["E.08(382)","ELEMENTOS COMPLEMENTARIOS DE ALBAÑILERIA          ",null,null,null,null,{"$f":"TEXT(SUM(G97:G100), \"$ #,##0.00 ;\")","v":"$ 0.00 "}]
[382017,"LOSA DE CONCRETO FC=200 KG/CM2 DE 10.0 CMS. DE ESPESOR Y 60.0 CMS. DE ANCHO, PARA RECIBIR LAVABO U OVALIN, ARMADA CON VARILLA #3 @ 30.0 CMS. EN AMBOS SENTIDOS, ACABADO APALILLADO, INCLUYE: TRAZO, CIMBRA COMUN Y DESCIMBRADO, RECUBRIMIENTO DE MARMOL TRAVERTINO DE 2 CM. DE ESPESOR, ORILLAS REDONDEADAS, DESPERDICIOS, NIVELACION, CORTES, ABRILLANTADO, AJUSTES, REMATES, ZOCLO 10.0 CMS, FALDONES 10.0 CMS., TALADROS PARA LLAVES Y OVALINES, HERRAMIENTAS, MANO DE OBRA, LIMPIEZA Y ACARREO DE MATERIAL AL SITIO DE SU UTILIZACION, A CUALQUIER NIVEL .","ML ","4.8000",0,"CERO PESOS 00/100 M.N.",0,275497]
[382025,"LOSA DE CONCRETO F'C=200 KG/CM2 DE 10 CM. DE ESPESOR ARMADA CON 1 VARILLA DEL #3 A CADA 20 CM EN AMBOS SENTIDOS, ACABADO PULIDO EN CARA SUPERIOR, (INTEGRAL, SIN UTILIZACION DE PASTA).  INCLUYE: CIMBRA APARENTE Y DESCIMBRA, GOTERO, CHAFLANES, NIVELACION, COLADO, CURADO, VIBRADO, HERRAMIENTAS, PRUEBAS, MANO DE OBRA, DESPERDICIOS Y ACARREO DE MATERIALES AL SITIO DE SU UTILIZACION. A CUALQUIER NIVEL.","M2 ","11.5500",0,"CERO PESOS 00/100 M.N.",0,275498]
[382553,"CONSTRUCCION  DE BANQUETON (ESTRADO) FORJADO CON MURO DE BLOCK SOLIDO DE 11 X 14 X 28 CM, (1 HILADA) DE 15.0 CMS. DE ALTURA TOTAL, APLANADO CON MORTERO CEM-ARENA EN PROP: 1:4 Y LOSA DE CONCRETO F´C= 150KG/CM2. DE 5 CM DE ESPESOR CON MALLA DE ACERO ELECTROSOLDADA DE 6X6 - 10/10, ACABADO APALILLADO, INCLUYE: RELLENO CON CASETON DE POLIESTIRENO ESPANDIDO DE BAJA DENSIDAD,  ACARREOS, BOLEADOS, REMATES, FILETES, LIMPIEZA,  MATERIALES, HERRAMIENTAS, NIVELECION, TRAZO Y MANO DE OBRA. EN CUALQUIER NIVEL.","M2 ","2.8000",0,"CERO PESOS 00/100 M.N.",0,275499]
[383022,"FORJADO DE BASE PARA VERTEDERO DE 0.40 X 0.40 X 0.40 M. MEDIDAS INTERIORES, FORJADA CON LADRILLO DE LAMA DE 14 CM. DE ESPESOR ASENTADO Y APLANADO CON MORTERO CEMENTO-ARENA DE RIO EN PROPORCION 1:3, RECUBIERTA CON AZULEJO DE 1RA. EN AREAS  EXTERIORES, INCLUYE: TRAZO, NIVELACION, PLOMEO, EMBOQUILLADO, ACARREO DE MATERIALES AL SITIO DE SU UTILIZACION, MANO DE OBRA Y HERRAMIENTA.","PZA","2.0000",0,"CERO PESOS 00/100 M.N.",0,275500]
["E.09(390)","CARPINTERIA                                       ",null,null,null,null,{"$f":"TEXT(SUM(G102:G102), \"$ #,##0.00 ;\")","v":"$ 0.00 "}]
[390013,"SUMINISTRO Y COLOCACION DE PUERTA Y/O FIJO DE TAMBOR CON TRIPLAY DE CAOBILLA DE 6 MM. EN AMBAS CARAS,  FORMADA A BASE DE BASTIDOR Y MARCO DE  MADERA DE PINO DE PRIMERA DE 1 1/2\"  X  1\"   Y  PEINAZOS HORIZONTALES DE 1 1/2\" X 1\"  A CADA 30 CMS., INCLUYE: BASTIDOR, HERRAJES, MARCO DE MADERA, MATERIALES MENORES Y DE FIJACION, DESPERDICIOS, HERRAMIENTA, EQUIPO, LIMPIEZA, MANO DE OBRA CALIFICADA Y ACARREO DE MATERIALES AL SITIO DE SU COLOCACION. EN CUALQUIER NIVEL.","M2 ","5.6000",0,"CERO PESOS 00/100 M.N.",0,275501]
["E.10(393)","PINTURA                                           ",null,null,null,null,{"$f":"TEXT(SUM(G104:G108), \"$ #,##0.00 ;\")","v":"$ 0.00 "}]
[393010,"PINTURA VINIL-ACRÍLICA A BASE DE AGUA ACABADO SEMIMATE  LAVABLE, PARA INTERIORES Y EXTERIORES QUE NO DESPRENDA VAPORES TÓXICOS NI OLORES DESAGRADABLES, CON LAS SIGUIENTES CARACTERÍSTICAS ( SÓLIDOS POR PESO 46-52%, SÓLIDOS POR VOLUMEN 30-36%, VISCOSIDAD DE 100-130 UK A 25°C, DENSIDAD > O = 1.2 TON/M3., LAVABILIDAD > O = 4,000 CICLOS, TIEMPO DE SECADO AL TACTO, 30-40 MIN., TIEMPO DE SECADO DURO < O = 8 HRS., CICLO DE CURADO DE 7 DIAS, PH 6-8, RENDIMIENTO EN SUP. LISA 8-10 M2/LT., FINEZA DE MOLIDO (HEGMAN) 3-7 UH.)  EN CADENAS DE DESPLANTE, A UNA CARA, TRABAJO TERMINADO, A DOS MANOS, INCLUYE: MATERIALES MENORES Y DE CONSUMO, PREPARACION DE LA SUPERFICIE, SELLADO DE LA SUPERFICIE, HERRAMIENTAS, LIMPIEZA, MANO DE OBRA Y  ACARREOS DE MATERIALES AL SITIO DE SU UTILIZACION.","ML ","52.0000",0,"CERO PESOS 00/100 M.N.",0,275502]
[393022,"PINTURA VINIL-ACRÍLICA A BASE DE AGUA ACABADO SEMIMATE  LAVABLE, PARA INTERIORES Y EXTERIORES QUE NO DESPRENDA VAPORES TÓXICOS NI OLORES DESAGRADABLES, CON LAS SIGUIENTES CARACTERÍSTICAS ( SÓLIDOS POR PESO 46-52%, SÓLIDOS POR VOLUMEN 30-36%, VISCOSIDAD DE 100-130 UK A 25°C, DENSIDAD > O = 1.2 TON/M3., LAVABILIDAD > O = 4,000 CICLOS, TIEMPO DE SECADO AL TACTO, 30-40 MIN., TIEMPO DE SECADO DURO < O = 8 HRS., CICLO DE CURADO DE 7 DIAS, PH 6-8, RENDIMIENTO EN SUP. LISA 8-10 M2/LT., FINEZA DE MOLIDO (HEGMAN) 3-7 UH.)  EN MUROS APLANADOS DE MEZCLA APALILLADO O PULIDO, TRABAJO TERMINADO, A DOS MANOS, INCLUYE: MATERIALES MENORES Y DE CONSUMO, ANDAMIOS, PREPARACION DE LA SUPERFICIE, SELLADO DE LA SUPERFICIE, HERRAMIENTAS, LIMPIEZA, MANO DE OBRA Y  ACARREOS DE MATERIALES AL SITIO DE SU UTILIZACIÓN.","M2 ","130.0000",0,"CERO PESOS 00/100 M.N.",0,275503]
[393052,"PINTURA VINIL-ACRÍLICA A BASE DE AGUA ACABADO SEMIMATE  LAVABLE, PARA INTERIORES Y EXTERIORES QUE NO DESPRENDA VAPORES TÓXICOS NI OLORES DESAGRADABLES, CON LAS SIGUIENTES CARACTERÍSTICAS ( SÓLIDOS POR PESO 46-52%, SÓLIDOS POR VOLUMEN 30-36%, VISCOSIDAD DE 100-130 UK A 25°C, DENSIDAD > O = 1.2 TON/M3., LAVABILIDAD > O = 4,000 CICLOS, TIEMPO DE SECADO AL TACTO, 30-40 MIN., TIEMPO DE SECADO DURO < O = 8 HRS., CICLO DE CURADO DE 7 DIAS, PH 6-8, RENDIMIENTO EN SUP. LISA 8-10 M2/LT., FINEZA DE MOLIDO (HEGMAN) 3-7 UH.)  EN LOSAS Y ELEMENTOS DE CONCRETO, TRABAJO TERMINADO, A DOS MANOS, INCLUYE: MATERIALES MENORES Y DE CONSUMO, ANDAMIOS, PREPARACION DE LA SUPERFICIE DE CONCRETO, SELLADO DE LA SUPERFICIE, HERRAMIENTAS, LIMPIEZA, MANO DE OBRA Y  EQUIPO DE SEGURIDAD. A CUALQUIER ALTURA.","M2 ","85.0000",0,"CERO PESOS 00/100 M.N.",0,275504]
[393142,"PINTURA DE ESMALTE ALQUIDALICO ANTICORROSIVO, ACABADO BRILLANTE, PARA INTERIORES Y EXTERIORES QUE NO DESPRENDA VAPORES TÓXICOS NI OLORES DESAGRADABLES, CON LAS SIGUIENTES CARACTERÍSTICAS ( SÓLIDOS POR PESO 49-60%, SÓLIDOS POR VOLUMEN 40-46%, VISCOSIDAD DE 110-160 UK A 25°C, DENSIDAD 0.9-1.2 TON/M3., BRILLO A 60°C, 90%, TIEMPO DE SECADO AL TACTO, < O = 6 HRS., TIEMPO DE SECADO DURO < O = 24 HRS., ADHERENCIA 100%, RENDIMIENTO EN SUP. LISA 8-10 M2/LT., DILUCIÓN MÁXIMA (AGUARRÁS, THINER), 15 %,  EN HERRERIA ABIERTA DE PERFILES ESTRUCTURALES (PROTECCIONES), MEDIDA POR UN SOLO LADO, TRABAJO TERMINADO, A DOS MANOS, INCLUYE: MATERIALES MENORES Y DE CONSUMO, ANDAMIOS, PREPARACION DE LA SUPERFICIE, HERRAMIENTAS, LIMPIEZA, MANO DE OBRA Y  EQUIPO DE SEGURIDAD. A CUALQUIER NIVEL. (LA PINTURA ES POR AMBOS LADOS DE LA HERRERIA, PERO PARA SU PAGO ES MEDIDA SOLO POR 1 SOLO LADO).","M2 ","10.8500",0,"CERO PESOS 00/100 M.N.",0,275505]
[393622,"SUMINISTRO Y APLICACION DE LACA SOBRE PUERTAS, ENTREPAÑOS, MUEBLES Y CONTRAMARCO DE MADERA, MARCA COMEX O SHERWIN WILLIAMS, CALIDAD DE PRIMERA, TRABAJO TERMINADO INCLUYE: PREPARACION DE LA SUPERFICIE, TAPAPORO, TINTA, MUÑEQUEADO ACABADO CRISTAL, Y  ACARREOS DE MATERIALES AL SITIO DE SU UTILIZACION, A CUALQUIER NIVEL.","M2 ","12.6000",0,"CERO PESOS 00/100 M.N.",0,275506]
["E.11(410)","CANCELERIA, HERRERIA, ALUMINIO, VIDRIOS Y CHAPAS  ",null,null,null,null,{"$f":"TEXT(SUM(G110:G116), \"$ #,##0.00 ;\")","v":"$ 0.00 "}]
[412004,"SUMINISTRO Y FABRICACION DE PROTECCIONES PARA VENTANERIA A BASE DE HERRERIA ESTRUCTURAL CON PERFIL CUADRADO Y/O REDONDO 1/2\" Y SOLERA DE 1/4\" X 1 1/2\", INCLUYE: CORTES, SOLDADURA, TALADROS, PINTURA DE TALLER,  AJUSTES Y DETALLES REALIZADOS EN OBRA DE ACUERDO A LO CONSTRUIDO,  ACARREOS, MATERIALES, DESPERDICIOS, HERRAMIENTAS Y EQUIPO NECESARIAS, MANO DE OBRA CALIFICADA Y TODO LO NECESARIO PARA SU CORRECTA EJECUCION.","KG ","105.0000",0,"CERO PESOS 00/100 M.N.",0,275507]
[412852,"COLOCACION DE HERRERIA TUBULAR Y/O ESTRUCTURAL SOLDADA Y/O ATORNILLADA A ESTRUCTURA Y REPISON EN CUALQUIER NIVEL, INCLUYE: PLOMEO, NIVELADO, AJUSTES Y ACARREO DE MATERIALES AL SITIO DE SU UTILIZACION","M2 ","10.8500",0,"CERO PESOS 00/100 M.N.",0,275508]
[420022,"SUMINISTRO, HABILITADO Y COLOCACION DE CANCELERIA FABRICADA  EN ALUMINIO ANODIZADO NATURAL CON PERFILES COMERCIALES DE 2\" X 1.25\",  MCA. CUPRUM ,  LINEA PANORAMA O SIMILAR, INCLUYE: TRAZO, CORTES, AJUSTES, MATERIALES, CORREDERAS, JALADERAS, OPERADORES, REPISON, SELLADO PERIMETRAL, SILICON, VINIL, HERRAJES, ELEMENTOS DE FIJACION, MATERIALES MENORES Y DE CONSUMO, DESPERDICIOS, HERRAMIENTAS, MANO DE OBRA ESPECIALIZADA, LIMPIEZA, FLETES, EQUIPO Y ACARREO DE MATERIALES AL SITIO DE SU COLOCACION, A CUALQUIER NIVEL.","M2 ","9.1500",0,"CERO PESOS 00/100 M.N.",0,275509]
[422020,"SUMINISTRO Y COLOCACION DE PUERTA PREFABRICADA, CON MEDIDAS GENERALES DE 1.20 X 2.10 MTS.,  MCA. PORCELTECH O SIMILAR EN GARANTIA Y CALIDAD. MOD. BETA, TIPO TAMBOR DE 36 MM. DE ESPESOR, FABRICADA CON BASTIDOR DE PERFIL TUBULAR  GALVANIZADO DE 1 1/4\" , NUCLEO RELLENO CON PANEL HONEY COMB DE 1 3/8\" DE ESPESOR Y DOBLE CARA (INTERIOR-EXTERIOR) DE  LAMINA DE ACERO PORCELANIZADO CAL. 24,  EN COLOR INDICADO POR LA SUPERVISION Y CUBRECANTOS DE ALUMINIO ANODIZADO NATURAL , MARCO Y ANTEPECHO DE HERRERIA TUBULAR DE PERFILES COMERCIALES DE 3\" X 1 1/2\" CAL 14., TOPE DE ANGULO DE 3/4\" X 1/8\", INCLUYE: MARCO, HERRAJES, BISAGRAS, NIVELACION, PLOMEO, ELEMENTOS DE FIJACION, MATERIALES MENORES Y DE CONSUMO, SELLADO PERIMETRAL, HERRAMIENTAS, LIMPIZA, MANO DE OBRA, FLETES Y ACARREOS DE MATERIALES AL SITIO DE SU COLOCACION, EN CUALQUIER NIVEL.","PZA","2.0000",0,"CERO PESOS 00/100 M.N.",0,275510]
[424094,"SUMINISTRO Y COLOCACION DE CERRADURA TIPO EUROPEO PARA PUERTA EXTERIOR, MCA. JAKO, MOD. KIT9001ENT, FABRICADA EN ACERO INOXIDABLE CON ACABADO SATINADO, DOBLE MANIJA DE PERFIL TUBULAR REDONDO Y CILINDRO LLAVE-MARIPOSA, INCLUYE: TRAZO, TALADROS, ELEMENTOS DE FIJACION, HERRAMIENTAS, CILINDRO, CHAPETÓN, LLAVES, LIMPIEZA,  MANO DE OBRA Y  ACARREO DE MATERIAL AL SITIO DE SU UTILIZACION.","PZA","2.0000",0,"CERO PESOS 00/100 M.N.",0,275511]
[424322,"SUMINISTRO Y COLOCACION DE TOPES DE PISO PARA PUERTA. INC.: ACARREO DE MATERIAL AL SITIO DE SU UTILIZACION, A CUALQUIER NIVEL.","PZA","2.0000",0,"CERO PESOS 00/100 M.N.",0,275512]
[426010,"SUMINISTRO Y COLOCACION DE CRISTAL FLOTADO DE 6 MM. DE ESPESOR,  ASENTADO CON SILICON, INCLUYE: CORTES, DESPERDICIOS Y ACARREO DE MATERIALES AL SITIO DE SU UTILIZACION A CUALQUIER NIVEL.","M2 ","9.1500",0,"CERO PESOS 00/100 M.N.",0,275513]
["E.12(510)","INSTALACION ELECTRICA EN EDIFICIO                 ",null,null,null,null,{"$f":"TEXT(SUM(G118:G126), \"$ #,##0.00 ;\")","v":"$ 0.00 "}]
[514034,"SALIDA ELECTRICA DE CENTRO AISLADA OCULTA, CON TUBERIA Y CONEXIONES CONDUIT DE PVC. PESADO  DE AJUSTE DE 13 Y 19 MM. DE DIAMETRO, CABLE VINANEL THW-LS 600 V. A 75° C, 90° C, MARCA CONDUCTORES MONTERREY, (VIAKON-PROTOCOLIZADO), CABLE VINANEL 21 THW-LS 600 V. A 75° C, 90° C, MARCA CONDUMEX (CONDUMEX PROTOCOLIZADO).  CALIBRE 12 EN FASES Y 12 EN TIERRA FISICA, CAJAS DE REGISTRO  CUADRADAS, CHALUPAS Y TAPAS DE  PVC REFORZADO., INCLUYE: TRAZO, RANURAS, MATERIALES MENORES, HERRAMIENTA, MANO DE OBRA ESPECIALIZADA , CONEXIONES, LIMPIEZA DEL AREA DE TRABAJO, PRUEBAS, DESPERDICIOS Y ACARREO DEL MATERIAL AL SITIO DE SU COLOCACION, EN CUALQUIER NIVEL.","SAL","22.0000",0,"CERO PESOS 00/100 M.N.",0,275514]
[518044,"SALIDA ELECTRICA PARA CONTACTO DUPLEX POLARIZADO, OCULTA, CON TUBERIA Y CONEXIONES CONDUIT DE PVC. PESADO DE 13 Y 19 MM. DE DIAMETRO,  CABLE VINANEL THW-LS 600 V. A 75° C, 90° C, MARCA CONDUCTORES MONTERREY, (VIAKON-PROTOCOLIZADO), CABLE VINANEL 21 THW-LS 600 V. A 75° C, 90° C, MARCA CONDUMEX (CONDUMEX PROTOCOLIZADO)., CALIBRE 10 Y 12, CAJAS DE REGISTRO  CUADRADAS, CHALUPAS Y TAPAS DE PVC REFORZADO, CONTACTO QUINZIÑO, TAPA DE ALUMINIO, INCLUYE: TRAZO, RANURAS, CONEXION A TIERRA, ACCESORIOS, MATERIALES MENORES Y DE CONSUMO, PRUEBAS, DESPERDICIOS Y ACARREO DEL MATERIAL AL SITIO DE SU COLOCACION, A CUALQUIER NIVEL.","SAL","11.0000",0,"CERO PESOS 00/100 M.N.",0,275515]
[522033,"SALIDA ELECTRICA PARA  APAGADOR SENCILLO, OCULTA, CON TUBERIA Y CONEXIONES CONDUIT DE PVC TIPO PESADO DE 13 Y 19 MM. DE DIAMETRO, CABLE VINANEL THW-LS 600 V. A 75° C, 90° C, MARCA CONDUCTORES MONTERREY, (VIAKON-PROTOCOLIZADO), CABLE VINANEL 21 THW-LS 600 V. A 75° C, 90° C, MARCA CONDUMEX (CONDUMEX PROTOCOLIZADO). CALIBRE 12, CAJAS CUADRADAS, CHALUPAS Y TAPAS DE PVC, APAGADOR QUINZIÑO, TAPA DE ALUMINIO, INCLUYE: RANURAS, MATERIALES MENORES, PRUEBAS, DESPERDICIOS Y ACARREO DEL MATERIAL AL SITIO DE SU COLOCACION, A CUALQUIER NIVEL.","SAL","5.0000",0,"CERO PESOS 00/100 M.N.",0,275516]
[522039,"SALIDA ELECTRICA PARA APAGADOR TIPO ESCALERA DOBLE, OCULTA, CON TUBERIA Y CONEXIONES CONDUIT DE PVC TIPO PESADO DE 19 MM. DE DIAMETRO, CABLE VINANEL THW-LS 600 V. A 75° C, 90° C, MARCA CONDUCTORES MONTERREY, (VIAKON-PROTOCOLIZADO), CABLE VINANEL 21 THW-LS 600 V. A 75° C, 90° C, MARCA CONDUMEX (CONDUMEX PROTOCOLIZADO). CALIBRE 12, CAJAS CUADRADAS, CHALUPAS Y TAPAS DE PVC, APAGADOR QUINZIÑO, TAPA DE ALUMINIO, INCLUYE: MATERIALES MENORES, PRUEBAS, DESPERDICIOS Y ACARREO DEL MATERIAL AL SITIO DE SU COLOCACION, A CUALQUIER NIVEL.","SAL","2.0000",0,"CERO PESOS 00/100 M.N.",0,275517]
[540306,"SUMINISTRO E INSTALACION DE CENTRO DE CARGA CAT. QO-612L-100,  DE 6 POLOS  100 AMPERES, INCLUYE: MATERIALES, ZAPATAS, MANO DE OBRA, HERRAMIENTAS, ELEMENTOS DE FIJACION, PRUEBAS,  ACARREOS Y MATERIALES MENORES.","PZA","1.0000",0,"CERO PESOS 00/100 M.N.",0,275518]
[542059,"SUMINISTRO Y COLOCACION DE CENTRO DE CARGA MARCA SQUARE- D TIPO QO-112L125G, 12 POLOS, 125 A. 1F, 3H, ZAPATAS, CAJA INTERIOR Y FRENTE QOC16U, INCLUYE: PRUEBAS, FLETES, MANO DE OBRA CALIFICADA, EQUIPO, HERRAMIENTA Y TODO LO NECESARIO PARA SU CORRECTA COLOCACION.","PZA","1.0000",0,"CERO PESOS 00/100 M.N.",0,275519]
[543012,"SUMINISTRO Y COLOCACION DE INTERRUPTOR TERMOMAGNETICO DERIVADO CON 1 POLOS, DE 15-60 AMPERES, MCA. SQUARE D, CAT. QO. INCLUYE: PRUEBAS, MATERIALES MENORES, HERRAMIENTAS, MANO DE OBRA ESPECIALIZADA  Y ACARREO DE MATERIALES AL SITIO DE SU COLOCACION.","PZA","2.0000",0,"CERO PESOS 00/100 M.N.",0,275520]
[550065,"SUMINISTRO E INSTALACION DE LUMINARIO FLUORESCENTE AHORRADOR DE ENERGIA DE 2 X 32 WATTS., PARA SOBREPONER TIPO ENVOLVENTE, GABINETE DE 120 CM DE LONGITUD APROXIMADAMENTE FABRICADO EN POLIESTER REFORZADO Y DIFUSOR DE POLICARBONATO TRANSPARENTE  DE ALTA RESISTENCIA CON PROTECCION UV,  CIERRE HERMETICO IP-65 DISEÑADA A PRUEBA DE POLVO, VAPORES Y AGUA; PARA OPERAR CON 2 LAMPARAS DE 32 WATTS,  T-8, Y BALASTRO ELECTRONICO MULTIVOLTAJE 120/227V., LA LUMINARIA (COMPLETA) DEBERA CUMPLIR CON LA NORMA ANCE, INCLUYE:  TRAZO, ELEMENTOS  DE FIJACIÓN, TUERCAS, RONDANAS, NIVELACIÓN,  COPIA DE CERTIFICACION ANCE ANEXA EN ELTRAMITE DE LA ESTIMACION, CONEXION, PRUEBAS, MATERIALES MENORES Y DE CONSUMO, HERRAMIENTAS, LIMPIEZA, MANO DE OBRA, Y ACARREOS.","PZA","1.0000",0,"CERO PESOS 00/100 M.N.",0,275521]
[550190,"SUMINISTRO E INSTALACION DE LUMINARIO FLUORESCENTE DE SOBREPONER, TIPO ENVOLVENTE, AHORRADOR DE ENERGIA DE 2 X 59 WATTS. FABRICADO EN LAMINA CAL 22, RECUBIERTO CON TRATAMIENTO FOSFATIZADO Y PINTURA ACRILICA O POLIESTER COLOR BLANCO, APLICADA ELECTROSTATICAMENTE Y TERMOENDURECIDA, PARA OBTENER UNA REFLECTANCIA MINIMA DE 90%, CON DIFUSOR ACRILICO PRISMATICO 100% PURO, TIPO ENVOLVENTE, CON UNA LONGITUD DE 240 CM., BALASTRO ELECTRONICO DE BAJA EMISION DE ARMONICAS, PARA OPERAR UNA O DOS LAMPARAS T8 DE 59 WATTS, (EQUIVALENTE A 4 LAMPARAS T8 DE 32 WATTS.), LA LUMINARIA (COMPLETA) DEBERA CUMPLIR CON LA NORMA ANCE, INCLUYE: COPIA DE CERTIFICACION ANCE ANEXA EN EL TRAMITE DE LA ESTIMACION, FIJACION, CONEXION, MATERIALES MENORES, HERRAMIENTAS, GARANTIAS, MANO DE OBRA, PRUEBAS Y ACARREOS.","PZA","4.0000",0,"CERO PESOS 00/100 M.N.",0,275522]
["E.13(530)","EQUIPOS E INSTALACIONES DE REDES DE VOZ Y DATOS.  ",null,null,null,null,{"$f":"TEXT(SUM(G128:G128), \"$ #,##0.00 ;\")","v":"$ 0.00 "}]
[524665,"SALIDA PARA EL SISTEMA DE RED DE VOZ Y/O DATOS, PARA SERVICIO A EQUIPOS DE COMPUTO EN LABORATORIO Y/O TALLER, FORMADA CON TUBERIA CONDUIT DE PVC TIPO PESADO DE 19, 25 Y 32 MM DE DIAM, CAJA REGISTRO GALVANIZADA DE 120 X 120 MM CON TAPA REALZADA EN SALIDAS DE MURO Y/O LOSA, GUIADAS CON ALAMBRE GALVANIZADO CAL NO. 14,  INCLUYE: TRAZO, RANURAS, MATERIALES MENORES Y DE CONSUMO, ELEMENTOS DE  FIJACION, HERRAMIENTAS, PRUEBAS, MANO DE OBRA Y ACARREO DE MATERIALES. (LONGITUD TOMADA DEL REGISTRO TELEFONICO AL SERVICIO-REGISTRO).","SAL","5.0000",0,"CERO PESOS 00/100 M.N.",0,275523]
["E.14(564)","INSTALACION HIDRAULICA, SANITARIA Y GAS EN EDIF.  ",null,null,null,null,{"$f":"TEXT(SUM(G130:G134), \"$ #,##0.00 ;\")","v":"$ 0.00 "}]
[570604,"SALIDA HIDRAULICA DE AGUA FRIA Y/O CALIENTE, PARA ALIMENTACION A MUEBLE EN AULA DE USOS MULTIPLES, CONSISTENTE EN TUBERIA Y CONEXIONES DE CPVC DE 1/2\" DE DIAMETRO, INCLUYE: TRAZO, RANURAS, CAMARAS CONTRA GOLPE DE ARIETE, CONEXIONES, ( COPLES, CODOS, TAPONES, TEES, YEES, REDUCCIONES, ETC),  MATERIALES MENORES Y DE CONSUMO, PEGAMENTOS, ELEMENTOS DE FIJACION, DESPERDICIOS,  HERRAMIENTAS, LIMPIEZA, MANO DE OBRA, PRUEBAS HIDROSTATICAS, FLETES Y ACARREO DE LOS MATERIALES AL SITIO DE SU INSTALACION. (EN CUALQUIER NIVEL)","SAL","1.0000",0,"CERO PESOS 00/100 M.N.",0,275524]
[570614,"SALIDA HIDRAULICA DE AGUA FRIA Y/O CALIENTE, PARA ALIMENTACION A MUEBLE SANITARIO, CONSISTENTE EN TUBERIA Y CONEXIONES DE CPVC DE 1/2\" A 2\" DE DIAMETRO,  INCLUYE: TRAZO, RANURAS, CAMARAS CONTRA GOLPE DE ARIETE, CONEXIONES, ( COPLES, CODOS, TAPONES, TEES, YEES, REDUCCIONES, ETC),  VALVULAS, TUERCAS UNION EN CUADROS DE VALVULAS, MATERIALES MENORES Y DE CONSUMO, PEGAMENTOS, ELEMENTOS DE FIJACION, DESPERDICIOS,  HERRAMIENTAS, LIMPIEZA, MANO DE OBRA, PRUEBAS HIDROSTATICAS, FLETES Y ACARREO DE LOS MATERIALES AL SITIO DE SU INSTALACION. (EN CUALQUIER NIVEL)","SAL","21.0000",0,"CERO PESOS 00/100 M.N.",0,275525]
[571102,"SALIDA SANITARIA A MUEBLE, CONSISTENTE EN TUBERIA Y CONEXIONES DE PVC DE 2\" Y 4\" DE DIAMETRO, INCLUYE: DESPERDICIO DE TUBERIA, LINEA DE VENTILACION (DESFOGUE),  COPLES, CODOS, TEES, YEES, REDUCCIONES, REGISTRO SANITARIO, MATERIALES MENORES, FLETES Y ACARREO DE LOS MATERIALES AL SITIO DE SU INSTALACION Y PRUEBAS.\n","SAL","32.0000",0,"CERO PESOS 00/100 M.N.",0,275526]
[575112,"SALIDA SANITARIA PARA MUEBLE DE AULA DE USOS MULTIPLES, CON TUBERIA Y CONEXIONES DE P.V.C.,   INCLUYE: VENTILACION,  MATERIALES MENORES, HERRAMIENTAS, MANO DE OBRA, CONEXIONES, PRUEBAS, DESPERDICIOS Y ACARREO DE MATERIALES AL SITIO DE SU COLOCACION.","SAL","1.0000",0,"CERO PESOS 00/100 M.N.",0,275527]
[592012,"SUMINISTRO Y COLOCACION DE CESPOL BOTE DE P.V.C. CON REJILLA CROMADA. INCLUYE: MATERIALES MENORES Y DE CONSUMO, HERRAMIENTAS, DESPERDICIOS, PRUEBAS, MANO DE OBRA Y ACARREO DE MATERIALES AL SITIO DE SU COLOCACION.","PZA","11.0000",0,"CERO PESOS 00/100 M.N.",0,275528]
[null,"RESUMEN DE PARTIDAS"]
["BAS-CONA-02941","CONSTRUCCIÓN DE UN AULA DIDÁCTICA, UN AULA DE USOS MÚLTIPLES, UN NÚCLEO DE SERVICIOS SANITARIOS, DIRECCIÓN CON ANEXO Y BODEGA, EN EL JARDÍN DE NIÑOS JAIME TORRES BODET CCT 14DJN0732V, UBICADO EN LA LOCALIDAD EL SALITRE, MUNICIPIO DE SAN MARTÍN HIDALGO, JALISCO. PRIMERA ETAPA.",null,null,null,null,{"$f":"G17","v":"$ 0.00 "}]
["A","EDIFICIO A",null,null,null,null,{"$f":"G18","v":"$ 0.00 "}]
["A.01(140)","DEMOLICIONES, DESMONTAJES Y MECANICA DE SUELOS    ",null,null,null,null,{"$f":"G19","v":"$ 0.00 "}]
["E","EDIFICIO E",null,null,null,null,{"$f":"G22","v":"$ 0.00 "}]
["E.01(150)","TRABAJOS PRELIMINARES                             ",null,null,null,null,{"$f":"G23","v":"$ 0.00 "}]
["E.02(160)","CIMENTACION                                       ",null,null,null,null,{"$f":"G28","v":"$ 0.00 "}]
["E.03(200)","ESTRUCTURA                                        ",null,null,null,null,{"$f":"G52","v":"$ 0.00 "}]
["E.04(310)","MUROS, CADENAS, CASTILLOS Y REPIZONES.            ",null,null,null,null,{"$f":"G64","v":"$ 0.00 "}]
["E.05(319)","ENTREPISOS, CUBIERTA Y ACABADOS DE AZOTEA         ",null,null,null,null,{"$f":"G79","v":"$ 0.00 "}]
["E.06(355)","RECUBRIMIENTOS Y ACABADOS                         ",null,null,null,null,{"$f":"G81","v":"$ 0.00 "}]
["E.07(372)","PISOS                                             ",null,null,null,null,{"$f":"G85","v":"$ 0.00 "}]
["E.08(382)","ELEMENTOS COMPLEMENTARIOS DE ALBAÑILERIA          ",null,null,null,null,{"$f":"G96","v":"$ 0.00 "}]
["E.09(390)","CARPINTERIA                                       ",null,null,null,null,{"$f":"G101","v":"$ 0.00 "}]
["E.10(393)","PINTURA                                           ",null,null,null,null,{"$f":"G103","v":"$ 0.00 "}]
["E.11(410)","CANCELERIA, HERRERIA, ALUMINIO, VIDRIOS Y CHAPAS  ",null,null,null,null,{"$f":"G109","v":"$ 0.00 "}]
["E.12(510)","INSTALACION ELECTRICA EN EDIFICIO                 ",null,null,null,null,{"$f":"G117","v":"$ 0.00 "}]
["E.13(530)","EQUIPOS E INSTALACIONES DE REDES DE VOZ Y DATOS.  ",null,null,null,null,{"$f":"G127","v":"$ 0.00 "}]
["E.14(564)","INSTALACION HIDRAULICA, SANITARIA Y GAS EN EDIF.  ",null,null,null,null,{"$f":"G129","v":"$ 0.00 "}]
[]
["IMPORTE CON LETRA (IVA INCLUIDO)",null,null,null,null,"SUBTOTAL M.N.",{"$f":"TEXT(G17,  \"$ #,##0.00 ;\")","v":"$ 0.00 "}]
[{"$f":"UPPER(CONVERTIRNUM(ROUND( G17 * 1.16, 2)))","v":"CERO PESOS 00/100 M.N."},null,null,null,null,"IVA M.N.",{"$f":"TEXT(ROUND( G17 * 0.16, 2),  \"$ #,##0.00 ;\")","v":"$ 0.00 "}]
[null,null,null,null,null,"TOTAL M.N.",{"$f":"TEXT(ROUND( G17 * 1.16, 2),  \"$ #,##0.00 ;\")","v":"$ 0.00 "}]